Cogmind - Beta 13 @@@ ROGUE MODE // 2024.04.25 @ 01:33:31 Player: tartine Result: Destroyed by P-70 Sage with Tesla Rifle Performance ------------- Evolutions (6) 3000 Regions Visited (12) 2400 Robots Destroyed (119) 595 Value Destroyed (4353) 4353 Prototype IDs (4) 80 Alien Tech Used (0) 0 Bonus (2504) 2504 TOTAL SCORE: 12932 Bonus ------- High Alert Combat Kills 1046 Follower Combat Kills 998 Met Imprinter 300 Was Imprinted 300 Friendly Fire -140 Cogmind --------- Core Integrity 0/1150 Matter 300/300 Energy 73/100 System Corruption 8% Temperature Cool (0) Movement Core (50) Location -4/Factory Parts ------- > --- POWER (2) -------- (None) > --- PROPULSION (4) --- (None) > --- UTILITY (7) ------ (None) > --- WEAPON (6) ------- (None) > --- INVENTORY (5) ---- Improved Target Analyzer Transmission Jammer Improved Remote Force Field Advanced Hacking Suite System Restoration Module Peak State ------------ > --- POWER ------------ Antimatter Reactor Reinforced Antimatter Reactor > --- PROPULSION ------- Wheel Wheel Armored Wheel Centrium Wheel > --- UTILITY ---------- Advanced Cooling System Advanced Cooling System Large Storage Unit Targeting Computer Advanced Transmission Jammer Improved Medium Armor Plating Improved Remote Force Field > --- WEAPON ----------- Tesla Rifle Dispersion Rifle Dispersion Rifle Heavy Phase Cannon Improved KE Penetrator Railgun > --- INVENTORY -------- Antimatter Reactor Wheel Wheel Advanced Cryofiber Web Advanced Heat Sink Improved Target Analyzer Transmission Jammer Improved Medium Armor Plating Improved Medium Armor Plating Improved Focal Shield Improved Focal Shield Advanced Hacking Suite System Restoration Module Phase Gun Matter Neutralizer [Rating: 105] Favorites ----------- Power Reinforced Deuterium Engine Engine Reinforced Deuterium Engine Power Core Light Nuclear Core Reactor Antimatter Reactor Propulsion Wheel Treads Improved Treads Leg Improved Carbon-fiber Leg Wheel Wheel Utility Large Storage Unit Device Advanced Heat Sink Storage Large Storage Unit Processor Targeting Computer Protection Improved Medium Armor Plating Weapon Ion Cannon Energy Gun Field Laser Energy Cannon Ion Cannon Ballistic Gun Gauss Rifle Ballistic Cannon Mass Driver Launcher Shock Bomb Launcher Special Weapon Flamer Slashing Weapon Mining Claw Build | -11 -10 -10 -10 -8 -7 -7 -7 -7 -6 -6 -5 -4 ------- Run | Yrd Mat Min Sub Mat Fac Low Low Zio Pro Fac Fac Fac Slots Evolved 12 | . . . . 4 2 . . . . 2 2 2 Power 1 | . . . . . 1 . . . . . . . Propulsion 2 | . . . . . . . . . . 1 . 1 Utility 5 | . . . . 2 1 . . . . 1 1 . Weapon 4 | . . . . 2 . . . . . . 1 1 Parts Attached 133 | 7 3 3 17 21 9 6 5 . 8 2 11 41 Power 19 | 1 . . 4 4 2 . 1 . 1 . 1 5 Engine 13 | 1 . . 4 3 2 . 1 . 1 . 1 . Core 1 | . . . . 1 . . . . . . . . Reactor 5 | . . . . . . . . . . . . 5 Propulsion 34 | 3 . 2 5 4 4 2 2 . 2 1 2 7 Treads 1 | . . . . . . . . . 1 . . . Leg 2 | . . . . . 2 . . . . . . . Wheel 31 | 3 . 2 5 4 2 2 2 . 1 1 2 7 Hover . | . . . . . . . . . . . . . Flight . | . . . . . . . . . . . . . Utility 35 | 1 2 . . 6 1 2 1 . 2 1 3 16 Device 22 | . 1 . . 3 1 1 . . . 1 2 13 Storage 2 | 1 1 . . . . . . . . . . . Processor 1 | . . . . 1 . . . . . . . . Hackware . | . . . . . . . . . . . . . Protection 10 | . . . . 2 . 1 1 . 2 . 1 3 Artifact . | . . . . . . . . . . . . . Weapon 45 | 2 1 1 8 7 2 2 1 . 3 . 5 13 Energy Gun 22 | 2 1 . 4 2 1 1 1 . 1 . 1 8 Energy Cannon 6 | . . . . 2 . 1 . . . . 1 2 Ballistic Gun 12 | . . . 4 1 1 . . . 2 . 2 2 Ballistic Cannon 2 | . . . . . . . . . . . 1 1 Launcher 1 | . . . . 1 . . . . . . . . Special Weapon 1 | . . . . 1 . . . . . . . . Impact Weapon . | . . . . . . . . . . . . . Slashing Weapon 1 | . . 1 . . . . . . . . . . Piercing Weapon . | . . . . . . . . . . . . . Special Melee Weapon . | . . . . . . . . . . . . . Unidentified Prototypes 4 | . . . . . 1 . . . . . 1 2 Parts Lost 62 | . . 2 8 8 . 3 2 . 7 . . 32 Power 7 | . . . 2 1 . . . . 1 . . 3 Propulsion 20 | . . 2 2 3 . 2 1 . 2 . . 8 Utility 16 | . . . . 2 . 1 . . 1 . . 12 Weapon 19 | . . . 4 2 . . 1 . 3 . . 9 Highest Loss Streak 26 | . . 2 3 4 . 2 1 . 7 . . 26 To Critical Strikes . | . . . . . . . . . . . . . Average Slot Usage (%) 97 | . 91 97 98 96 95 99 100 100 99 95 98 94 Engine 11 | . 14 14 13 8 11 15 15 15 14 13 11 1 Reactor 1 | . . . . . . . . . . . . 7 Wheel 16 | . 28 25 27 17 8 14 15 15 12 8 13 19 Device 17 | . 6 14 14 14 23 20 15 15 15 20 23 20 Storage 7 | . 14 14 14 9 7 7 7 7 7 6 5 4 Processor 5 | . . . . 1 7 7 7 7 7 6 5 4 Protection 5 | . . . . 8 . 1 7 7 7 6 4 4 Energy Gun 14 | . 28 26 11 19 10 13 9 15 14 13 15 13 Energy Cannon 9 | . . . . 2 15 16 20 15 9 . 3 5 Ballistic Gun 4 | . . . 16 6 4 . . . 5 13 5 9 Naked Turns 24 | . . . . . . . . . . . . 24 Heaviest Build 126 | 13 31 31 34 57 64 70 73 73 73 70 83 126 Greatest Support 48 | 26 20 20 40 30 38 20 20 20 20 20 36 48 Greatest Overweight (x) 6 | . 1 1 1 5 3 6 3 3 6 6 4 3 Average Overweight (x) 2 | . . 1 . 1 1 3 3 3 3 4 2 1 Largest Inventory Capacity 15 | 8 15 15 15 15 15 15 15 15 15 15 15 15 Average Capacity 14 | 7 9 15 15 15 15 15 15 15 15 15 15 14 Most Carried 15 | 4 9 14 15 15 15 15 15 15 15 8 15 15 Average Carried 13 | 1 6 11 14 11 14 13 13 14 12 7 11 14 Final Capacity 15 | 8 15 15 15 15 15 15 15 15 15 15 15 5 Final Carried 15 | 4 9 14 14 15 15 12 13 15 8 8 15 5 Class Distribution -------------------- 56% | Scavenger-Gunner 17% | Scavenger-Executioner 11% | Scavenger-Tank 8% | Scavenger-Mutant 6% | Mutant Dominant Class ---------------- Mutant | -10/Materials Scavenger-Mutant | -10/Mines Scavenger-Mutant | -10/Subcaves Scavenger-Tank | -8/Materials Scavenger-Gunner | -7/Factory Scavenger-Gunner | -7/Lower Caves Scavenger-Gunner | -7/Lower Caves Scavenger-Gunner | -7/Zion Scavenger-Gunner | -6/Proximity Caves Scavenger-Gunner | -6/Factory Scavenger-Tank | -5/Factory Scavenger-Executioner | -4/Factory Resources | -11 -10 -10 -10 -8 -7 -7 -7 -7 -6 -6 -5 -4 ----------- Run | Yrd Mat Min Sub Mat Fac Low Low Zio Pro Fac Fac Fac Matter Collected 1982 | 270 30 20 197 220 70 104 50 . 114 16 200 691 Remotely . | . . . . . . . . . . . . . Salvage Created 5274 | 144 384 72 342 787 70 329 532 . 165 79 311 2059 Parts 256 | 12 18 9 21 51 1 11 23 . 9 4 20 77 Haulers Intercepted 1 | . 1 . . . . . . . . . . . Recyclers Shooed 3 | . . . . . . . . . . . 1 2 Parts Field Recycled . | . . . . . . . . . . . . . Retrieved Matter . | . . . . . . . . . . . . . Parts Self-Destructed 48 | . . . 10 . . 9 17 . 12 . . . Prevented . | . . . . . . . . . . . . . Kills | -11 -10 -10 -10 -8 -7 -7 -7 -7 -6 -6 -5 -4 ------- Run | Yrd Mat Min Sub Mat Fac Low Low Zio Pro Fac Fac Fac Combat Hostiles Destroyed 83 | . 9 3 8 12 1 8 12 . 3 . 4 23 Guns 58 | . 7 3 8 11 . 4 2 . 2 . 4 17 Cannons 19 | . . . . . 1 3 9 . . . . 6 AOE 1 | . . . . 1 . . . . . . . . Classes Destroyed 18 | 2 4 . 1 4 . . 3 . . . 2 2 Worker 8 | . 2 . . . . . . . . 3 . 3 Builder 8 | . . . . 3 . . . . . . 1 4 Tunneler 6 | 3 . 2 . 1 . . . . . . . . Hauler 1 | . 1 . . . . . . . . . . . Recycler 7 | 1 . . . 2 . . . . . . 1 3 Mechanic 1 | . . . . . . . . . . . . 1 Operator 2 | . . . . . . . . . . . 1 1 Watcher 2 | . . . . . . . . . . . 1 1 Swarmer 25 | . 3 3 . 4 . 3 5 . . . 4 3 Grunt 27 | . 6 . . 3 . 5 1 . 3 . . 9 Brawler 4 | . . . . . . . 2 . . . . 2 Duelist 5 | . . . . . . . 1 . . . . 4 Sentry 6 | . . . . 3 1 . 1 . . . . 1 Hunter 3 | . . . . 1 . . 1 . . . . 1 Programmer 4 | . . . . . . . 1 . . . . 3 Heavy 1 | . . . . 1 . . . . . . . . Subdweller 8 | . . . 8 . . . . . . . . . Z-Light 1 | . . . . . . . . . . . . 1 Best Kill Streak 14 | 4 8 3 4 13 1 3 4 . 2 1 7 14 Combat Bots Only 6 | . 6 3 4 5 1 3 4 . 2 . 4 5 Max Kills in Single Turn 6 | 1 1 1 1 3 1 1 2 . 1 1 1 6 Gunslinging . | . . . . . . . . . . . . . Exploded 1 | . . . . 1 . . . . . . . . Melee . | . . . . . . . . . . . . . Uniques/NPCs Destroyed . | . . . . . . . . . . . . . Combat | -11 -10 -10 -10 -8 -7 -7 -7 -7 -6 -6 -5 -4 -------- Run | Yrd Mat Min Sub Mat Fac Low Low Zio Pro Fac Fac Fac Hostile Shots Fired 655 | . 30 15 50 65 18 42 32 . 51 9 24 319 Missed 179 | . 11 3 11 21 6 13 11 . 5 2 9 87 Damage Taken 8866 | . 195 101 786 728 86 472 382 . 889 103 165 4959 Core 1816 | . 40 30 100 121 15 68 38 . 224 10 11 1159 Absorbed by Shields . | . . . . . . . . . . . . . Ignored by Resistances 144 | . . . . . . . . . . . 61 83 Core Remaining (%) 76 | 100 . . 32 78 . . . . 50 98 98 . Volleys Fired 246 | 9 28 11 27 23 11 16 15 . 10 6 21 69 Largest 6 | 2 2 2 2 4 4 4 4 . 4 4 5 6 Hottest 439 | 90 115 115 115 250 246 252 252 . 252 182 335 439 Shots Fired 769 | 18 56 21 54 79 38 54 58 . 26 24 73 268 Gun 593 | 18 56 21 54 66 16 23 15 . 22 24 70 208 Cannon 168 | . . . . 5 22 31 43 . 4 . 3 60 Launcher 5 | . . . . 5 . . . . . . . . Special 3 | . . . . 3 . . . . . . . . Kinetic 166 | . . . 26 15 3 . . . 16 12 26 68 Thermal 564 | 18 56 21 28 59 35 54 58 . 10 12 44 169 Explosive . | . . . . . . . . . . . . . Electromagnetic 39 | . . . . 5 . . . . . . 3 31 Robot Hit Streak 21 | 4 15 11 17 21 4 13 7 . 5 9 8 19 Robot Miss Streak 6 | 3 2 2 2 2 1 2 2 . 1 1 4 6 Penetration Max 1 | . . . . . . . . . . . . 1 Secondary Targets 5 | . 1 . 1 1 . . . . 1 . 1 . Max Gunslinging Chain 1 | . 1 . 1 1 . . . . 1 . 1 . Shots Hit Robots 435 | 11 43 14 46 49 5 34 33 . 19 13 24 144 Core Hits 211 | 5 17 5 15 27 3 13 17 . 10 3 17 79 Critical Kills 6 | . . . . 1 . 1 1 . 1 . . 2 Critical Parts Destroyed 4 | . . . 1 . . . . . . . . 3 Critical Strikes 24 | . 6 . 3 2 . 1 2 . 2 . 1 7 Burn 12 | . 6 . . 1 . . 1 . 1 . 1 2 Meltdown 2 | . . . . . . 1 1 . . . . . Destroy 10 | . . . 3 1 . . . . 1 . . 5 Melee Attacks 3 | . . 3 . . . . . . . . . . Impact . | . . . . . . . . . . . . . Slashing 3 | . . 3 . . . . . . . . . . Piercing . | . . . . . . . . . . . . . Sneak Attacks . | . . . . . . . . . . . . . Combat Hostiles . | . . . . . . . . . . . . . Follow-up Attacks . | . . . . . . . . . . . . . Damage Inflicted 10809 | 128 549 212 879 1238 92 648 736 . 384 134 522 5287 Guns 7849 | 128 549 212 879 846 52 326 253 . 336 134 502 3632 Cannons 1948 | . . . . 91 40 322 483 . 48 . 20 944 Explosions 977 | . . . . 291 . . . . . . . 686 Melee . | . . . . . . . . . . . . . Ramming 25 | . . . . . . . . . . . . 25 Kinetic 2212 | . . . 444 142 . . . . 246 64 96 1220 Thermal 7857 | 128 549 212 435 805 92 648 736 . 138 70 406 3638 Explosive . | . . . . . . . . . . . . . Electromagnetic 715 | . . . . 291 . . . . . . 20 404 Impact . | . . . . . . . . . . . . . Slashing . | . . . . . . . . . . . . . Piercing . | . . . . . . . . . . . . . Highest Corruption 8 | . . . . . . . . . . . . 8 Average Corruption 1 | . . . . . . . . . . . . 1 Corruption Purged . | . . . . . . . . . . . . . Corruption Blocked . | . . . . . . . . . . . . . Effects 3 | . . . . . . . . . . . . 3 Message Errors 1 | . . . . . . . . . . . . 1 Matter Fused 1 | . . . . . . . . . . . . 1 Heat Flow Errors 1 | . . . . . . . . . . . . 1 Overload Shots . | . . . . . . . . . . . . . Overflow Damage 319 | . . . . 4 . . 10 . . . . 305 Projectiles 35 | . . . . . . . 10 . . . . 25 Explosions 284 | . . . . 4 . . . . . . . 280 Melee . | . . . . . . . . . . . . . Knockbacks . | . . . . . . . . . . . . . Impact . | . . . . . . . . . . . . . Kinetic . | . . . . . . . . . . . . . Secondary . | . . . . . . . . . . . . . Self-Inflicted Damage 171 | . . . . 47 . . . . . 49 . 75 Shots 4 | . . . . 2 . . . . . 1 . 1 Rammed 6 | . . . . . . . . . . . . 6 Targets Rammed 6 | . . . . . . . . . . . . 6 Kicked . | . . . . . . . . . . . . . Crushed . | . . . . . . . . . . . . . Highest Temperature 472 | 90 336 48 . 220 174 370 316 . 472 72 171 405 Average Temperature 120 | 43 103 16 . 70 90 164 145 . 294 32 69 125 Received Heat Transfer 2220 | . 96 . 144 180 24 180 72 . 339 18 . 1167 Effects 22 | . . . . . . 6 . . 11 . . 5 Shutdowns 7 | . . . . . . 1 . . 3 . . 3 Energy Bleed 3 | . . . . . . 1 . . . . . 2 Interference 9 | . . . . . . 4 . . 5 . . . Damage (minor) 1 | . . . . . . . . . 1 . . . Damage (major) 2 | . . . . . . . . . 2 . . . Siege Activations . | . . . . . . . . . . . . . Robots Corrupted . | . . . . . . . . . . . . . Combat Hostiles . | . . . . . . . . . . . . . Parts Fried . | . . . . . . . . . . . . . Impact Corruptions . | . . . . . . . . . . . . . Robots Melted 5 | . 2 . . . . 1 1 . 1 . . . Combat Hostiles 5 | . 2 . . . . 1 1 . 1 . . . Parts Melted 31 | . 5 . 2 2 2 4 5 . 1 . 1 9 Heat Transferred 13469 | 323 1891 555 647 1273 185 1258 1406 . 333 148 903 4547 Parts Sabotaged 2 | . . . . . . . . . . . . 2 Parts Stolen . | . . . . . . . . . . . . . Parts Stripped . | . . . . . . . . . . . . . Power Chain Reactions . | . . . . . . . . . . . . . Alert | -11 -10 -10 -10 -8 -7 -7 -7 -7 -6 -6 -5 -4 ------- Run | Yrd Mat Min Sub Mat Fac Low Low Zio Pro Fac Fac Fac Peak Influence 1712 | 20 245 170 . 398 270 . . . . 1108 760 1712 Initial 931 | . 13 95 . . 90 . . . . 931 542 296 Average 617 | 5 146 159 . 178 182 . . . . 1009 614 954 Maximum Alert Level 5 | . 1 . . 1 1 . . . . 4 3 5 Low Security (%) 21 | 100 59 100 . 62 33 . . . . . . . Level 1 18 | . 40 . . 37 66 . . . . . . 12 Level 2 30 | . . . . . . . . . . . 94 31 Level 3 9 | . . . . . . . . . . 99 5 5 Level 4 15 | . . . . . . . . . . . . 39 Level 5 4 | . . . . . . . . . . . . 11 High Security . | . . . . . . . . . . . . . Max Security . | . . . . . . . . . . . . . Squads Dispatched 18 | . . . . 2 . . . . . . 2 14 Investigation . | . . . . . . . . . . . . . Extermination 3 | . . . . . . . . . . . . 3 Reinforcement 4 | . . . . 2 . . . . . . 1 1 Assault 10 | . . . . . . . . . . . 1 9 Garrison 1 | . . . . . . . . . . . . 1 Intercept . | . . . . . . . . . . . . . Searches Triggered 1 | . . . . . . . . . . . 1 . Construction Impeded . | . . . . . . . . . . . . . Haulers Reinforced 1 | . . . . . . . . . . . 1 . Active Scanning Responses . | . . . . . . . . . . . . . Cargo Convoy Interrupts . | . . . . . . . . . . . . . Stealth | -11 -10 -10 -10 -8 -7 -7 -7 -7 -6 -6 -5 -4 --------- Run | Yrd Mat Min Sub Mat Fac Low Low Zio Pro Fac Fac Fac Distress Signals 3 | . 1 . . 2 . . . . . . . . Communications Jammed 80 | . . . . . . . . . 2 . . 78 Distress Signals 73 | . . . . . . . . . . . . 73 Times Spotted 168 | . 11 2 8 24 1 9 11 . 9 1 9 83 Peak Tracking Total 19 | . 5 2 3 8 1 3 4 . 5 1 4 19 Tactical Retreats 8 | . . . . 4 . 1 1 . . . 1 1 Traps | -11 -10 -10 -10 -8 -7 -7 -7 -7 -6 -6 -5 -4 ------- Run | Yrd Mat Min Sub Mat Fac Low Low Zio Pro Fac Fac Fac Traps Triggered 1 | . . . . . 1 . . . . . . . Indirectly . | . . . . . . . . . . . . . Trap Hack Attempts . | . . . . . . . . . . . . . Triggered . | . . . . . . . . . . . . . Disarmed . | . . . . . . . . . . . . . Reprogrammed . | . . . . . . . . . . . . . Reused . | . . . . . . . . . . . . . Traps Extracted . | . . . . . . . . . . . . . Installed . | . . . . . . . . . . . . . Triggered . | . . . . . . . . . . . . . Machines | -11 -10 -10 -10 -8 -7 -7 -7 -7 -6 -6 -5 -4 ---------- Run | Yrd Mat Min Sub Mat Fac Low Low Zio Pro Fac Fac Fac Machines Disabled 43 | . . . . 1 6 . . . . 7 5 24 Max in Single Turn 8 | . . . . 1 5 . . . . 5 3 8 Garrison Access 1 | . . . . . . . . . . . . 1 Machines Repaired . | . . . . . . . . . . . . . Machines Dismantled . | . . . . . . . . . . . . . Machines Sabotaged . | . . . . . . . . . . . . . Overloaded Fab Kills . | . . . . . . . . . . . . . Hacking | -11 -10 -10 -10 -8 -7 -7 -7 -7 -6 -6 -5 -4 --------- Run | Yrd Mat Min Sub Mat Fac Low Low Zio Pro Fac Fac Fac Machines Accessed 5 | . 2 . . 1 . . . . . . 1 1 Terminals 3 | . 2 . . 1 . . . . . . . . Fabricators 2 | . . . . . . . . . . . 1 1 Repair Stations . | . . . . . . . . . . . . . Recycling Units . | . . . . . . . . . . . . . Scanalyzers . | . . . . . . . . . . . . . Garrison Access . | . . . . . . . . . . . . . Total Hacks 11 | . 7 . . 2 . . . . . . 1 1 Successful 6 | . 3 . . 2 . . . . . . 1 . Failed 5 | . 4 . . . . . . . . . . 1 Catastrophic 1 | . . . . . . . . . . . . 1 Database Lockouts . | . . . . . . . . . . . . . Manual 21 | . . . . . . . . . . 6 5 10 Terminals 9 | . 7 . . 2 . . . . . . . . Fabricators 2 | . . . . . . . . . . . 1 1 Repair Stations . | . . . . . . . . . . . . . Recycling Units . | . . . . . . . . . . . . . Scanalyzers . | . . . . . . . . . . . . . Garrison Access . | . . . . . . . . . . . . . Terminal Hacks 5 | . 3 . . 2 . . . . . . . . Record 3 | . 1 . . 2 . . . . . . . . Branch Access Points 1 | . 1 . . . . . . . . . . . Alert Level 1 | . 1 . . . . . . . . . . . Fabricator Hacks 1 | . . . . . . . . . . . 1 . Build 1 | . . . . . . . . . . . 1 . Repair Station Hacks . | . . . . . . . . . . . . . Recycling Unit Hacks . | . . . . . . . . . . . . . Scanalyzer . | . . . . . . . . . . . . . Garrison Access Hacks . | . . . . . . . . . . . . . Unauthorized Hacks . | . . . . . . . . . . . . . Terminals . | . . . . . . . . . . . . . Fabricators . | . . . . . . . . . . . . . Repair Stations . | . . . . . . . . . . . . . Recycling Units . | . . . . . . . . . . . . . Scanalyzers . | . . . . . . . . . . . . . Garrison Access . | . . . . . . . . . . . . . Data Cores Recovered 3 | . . . . . . . . . . . 1 2 Used . | . . . . . . . . . . . . . Hacking Detections 5 | . 2 . . 1 . . . . . . 1 1 Full Trace Events . | . . . . . . . . . . . . . Feedback Events . | . . . . . . . . . . . . . Feedback Blocked . | . . . . . . . . . . . . . Robot Schematics Acquired . | . . . . . . . . . . . . . Robots Built 1 | . . . . . . . . . . . 1 . Authchips . | . . . . . . . . . . . . . Time 50 | . . . . . . . . . . . 50 . Total Robot Build Rating 5 | . . . . . . . . . . . 5 . Part Schematics Acquired . | . . . . . . . . . . . . . Parts Built . | . . . . . . . . . . . . . Authchips . | . . . . . . . . . . . . . Time . | . . . . . . . . . . . . . Total Part Build Rating . | . . . . . . . . . . . . . Parts Repaired . | . . . . . . . . . . . . . Time . | . . . . . . . . . . . . . Parts Recycled . | . . . . . . . . . . . . . Recycled Matter . | . . . . . . . . . . . . . Retrieved Matter . | . . . . . . . . . . . . . Retrieved Components . | . . . . . . . . . . . . . Parts Scanalyzed . | . . . . . . . . . . . . . Part Schematics Acquired . | . . . . . . . . . . . . . Parts Damaged . | . . . . . . . . . . . . . Bothacking | -11 -10 -10 -10 -8 -7 -7 -7 -7 -6 -6 -5 -4 ------------ Run | Yrd Mat Min Sub Mat Fac Low Low Zio Pro Fac Fac Fac Used RIF Installer . | . . . . . . . . . . . . . Robots Hacked . | . . . . . . . . . . . . . Non-combat . | . . . . . . . . . . . . . Combat . | . . . . . . . . . . . . . Robot Hacks Applied . | . . . . . . . . . . . . . Relay Couplers Released 2 | . . . . . . . . . . . . 2 Machine Destruction 2 | . . . . . . . . . . . . 2 Fabnet Peak Effective % . | . . . . . . . . . . . . . Robots Rewired . | . . . . . . . . . . . . . Allies Hacked . | . . . . . . . . . . . . . Hacks Repelled . | . . . . . . . . . . . . . Allies | -11 -10 -10 -10 -8 -7 -7 -7 -7 -6 -6 -5 -4 -------- Run | Yrd Mat Min Sub Mat Fac Low Low Zio Pro Fac Fac Fac Total Allies 16 | . . . . . . . . 4 . 1 4 7 Largest Group 5 | . . . . . . . . 4 . 1 4 5 Highest-Rated Group 365 | . . . . . . . . 153 . 28 229 365 Highest-Rated Ally 103 | . . . . . . . . 41 . 28 70 103 Zionite Dispatches 5 | . . . . . . . . . . 1 1 3 Heavy 1 | . . . . . . . . . . . . 1 Light 1 | . . . . . . . . . . . 1 . Fire 1 | . . . . . . . . . . . . 1 Demo 1 | . . . . . . . . . . . . 1 Infowar Resupply 1 | . . . . . . . . . . 1 . . Total Orders 1 | . . . . . . . . . . 1 . . PICKUP 1 | . . . . . . . . . . 1 . . Ally Attacks 107 | . . . . . . . . . . . 24 83 Total Damage 4499 | . . . . . . . . . . . 487 4012 Kills 31 | . . . . . . . . . . . 5 26 Allies Corrupted . | . . . . . . . . . . . . . Allies Melted . | . . . . . . . . . . . . . Intel | -11 -10 -10 -10 -8 -7 -7 -7 -7 -6 -6 -5 -4 ------- Run | Yrd Mat Min Sub Mat Fac Low Low Zio Pro Fac Fac Fac Robot Analysis Total . | . . . . . . . . . . . . . Derelict Logs Recovered 4 | . . 1 . . . . 1 1 1 . . . Drone Launches . | . . . . . . . . . . . . . Drone Recoveries . | . . . . . . . . . . . . . Zionite Intel Received 2 | . . . . . . . . . . 1 . 1 Branch Access 1 | . . . . . . . . . . 1 . . Prototype Stockpiles 1 | . . . . . . . . . . . . 1 Exploration | -11 -10 -10 -10 -8 -7 -7 -7 -7 -6 -6 -5 -4 ------------- Run | Yrd Mat Min Sub Mat Fac Low Low Zio Pro Fac Fac Fac Turns Passed 6665 | 77 220 119 441 425 274 353 592 1488 577 209 617 1273 Spaces Moved 4100 | 41 141 71 284 212 158 215 391 909 388 122 356 812 Core 50 | 1 . . . . . . . . . . . 49 Treads . | . . . . . . . . . . . . . Legs 42 | . . . . . 42 . . . . . . . Wheels 4008 | 40 141 71 284 212 116 215 391 909 388 122 356 763 Hover . | . . . . . . . . . . . . . Flight . | . . . . . . . . . . . . . Fastest Speed 50 | 50 80 95 95 95 110 125 125 125 125 125 113 50 Average Speed 119 | 84 84 95 108 109 135 126 125 125 135 151 122 110 Slowest Speed 330 | 100 95 95 120 155 330 170 125 125 170 170 140 150 Overloaded Moves . | . . . . . . . . . . . . . Propulsion Burnouts . | . . . . . . . . . . . . . Robots Hopped . | . . . . . . . . . . . . . Cave-ins Triggered . | . . . . . . . . . . . . . Exploration Rate (%) 30 | 4 31 17 23 21 4 40 66 86 57 5 12 26 Regions Visited 12 Branch Regions 6 Pre-discovered Areas 4 | . . . . . . . 1 2 1 . . . Known Exits Taken 2 | . 1 1 . . . . . . . . . . Unknown Exits Taken 10 | 1 . . 1 1 1 1 1 1 1 1 1 . Scrap Searched 9 | . . . . . . 1 2 5 1 . . . Spaces Dug 9 | . . . . . . . . . . . . 9 Terrain Destroyed 254 | . . . . . 43 . . . 3 48 31 129 Melee . | . . . . . . . . . . . . . Projectile 36 | . . . . . . . . . 3 . . 33 AOE 218 | . . . . . 43 . . . . 48 31 96 Terrain Rammed . | . . . . . . . . . . . . . Walls Destroyed . | . . . . . . . . . . . . . Machines Disabled . | . . . . . . . . . . . . . Actions | -11 -10 -10 -10 -8 -7 -7 -7 -7 -6 -6 -5 -4 --------- Run | Yrd Mat Min Sub Mat Fac Low Low Zio Pro Fac Fac Fac Total 5276 | 62 184 94 360 348 195 260 459 1261 416 131 489 1017 Wait 642 | . 8 . 16 74 . 21 36 349 11 1 76 50 Move 4088 | 40 140 70 283 211 157 214 390 908 387 121 355 812 Hop . | . . . . . . . . . . . . . Pick Up 85 | 5 4 7 10 13 8 . 7 3 . 1 14 13 Fast Attach 46 | 6 1 . 3 2 4 2 . . . 1 6 21 Attach 60 | . . 2 8 14 4 3 2 . 7 1 4 15 Detach 2 | . . . . . . . . . . . 1 1 Swap 27 | 1 2 1 6 5 1 1 3 . 1 . 1 5 Drop 71 | 1 1 . 7 6 10 3 6 1 . . 11 25 Fire 246 | 9 28 11 27 23 11 16 15 . 10 6 21 69 Melee 3 | . . 3 . . . . . . . . . . Ram 6 | . . . . . . . . . . . . 6 Kick . | . . . . . . . . . . . . . Crush . | . . . . . . . . . . . . . Escape Stasis . | . . . . . . . . . . . . . Rewire . | . . . . . . . . . . . . . Trap . | . . . . . . . . . . . . . Miscellaneous . | . . . . . . . . . . . . . Route ------- -11/Scrapyard -10/Materials (discovered 2 exits: *Min x2) -10/Mines -10/Subcaves -8/Materials -7/Factory -7/Lower Caves -7/Lower Caves -7/Zion -6/Proximity Caves -6/Factory (discovered 4 exits: *Fac x2 / Low x2) -5/Factory (discovered 2 exits: *Fac / [*Upp]) -4/Factory History --------- Turn | Location | Event 7 | -11/Scrapyard | Discovered new exit (range 15) 78 | -11/Scrapyard | Entered Materials 140 | -10/Materials | Identified exit to Mines 298 | -10/Materials | Entered Mines 303 | -10/Mines | Build established: Mutant 360 | -10/Mines | Identified exit to Subcaves 417 | -10/Mines | Entered Subcaves 421 | -10/Subcaves | Ambushed by Subdwellers from Twisted Machinery 469 | -10/Subcaves | Lost 3 parts (1n2w) 613 | -10/Subcaves | Core integrity fell below 50% 632 | -10/Subcaves | Build established: Scavenger-Mutant 673 | -10/Subcaves | Lost 3 parts (2p1w) 816 | -10/Subcaves | Shifting Twisted Machinery released Sub. Laser 818 | -10/Subcaves | Discovered new exit (range 8) 834 | -10/Subcaves | Shifting Twisted Machinery released Mak. Light Armor Plating 858 | -10/Subcaves | Entered Materials 858 | -8/Materials | Evolved 4 slots: Utility x2, Weapon x2 1136 | -8/Materials | Lost 4 parts (2n1u1w) 1154 | -8/Materials | Build established: Scavenger-Tank 1200 | -8/Materials | Lost 3 parts (1p1u1w) 1214 | -8/Materials | Discovered new exit (range 15) 1283 | -8/Materials | Entered Factory 1283 | -7/Factory | Evolved 2 slots: Power x1, Utility x1 1533 | -7/Factory | Build established: Scavenger-Gunner 1545 | -7/Factory | Discovered new exit (range 8) 1557 | -7/Factory | Entered Lower Caves 1899 | -7/Lower Caves | Discovered new exit (range 10) 1910 | -7/Lower Caves | Entered another Lower Caves area 2011 | -7/Lower Caves | Attracted the attention of an 0b10 outpost 2272 | -7/Lower Caves | Learned location of Zion (-7) 2303 | -7/Lower Caves | Encountered a Warlord checkpoint 2492 | -7/Lower Caves | Discovered new exit (range 9) 2502 | -7/Lower Caves | Entered Zion 2797 | -7/Zion | Learned location of Data Miner (-6) 3364 | -7/Zion | Imprinted 3366 | -7/Zion | Declared Zion's savior 3970 | -7/Zion | Discovered new exit (range 16) 3990 | -7/Zion | Entered Proximity Caves 4002 | -6/Proximity Caves | Spotter reported a threat 4071 | -6/Proximity Caves | Spotter reported a threat 4120 | -6/Proximity Caves | Spotter reported a threat 4123 | -6/Proximity Caves | Spotter reported a threat 4373 | -6/Proximity Caves | Spotter reported a threat 4418 | -6/Proximity Caves | Lost 7 parts (1p2n1u3w) 4426 | -6/Proximity Caves | Spotter reported a threat 4509 | -6/Proximity Caves | Spotter reported a threat 4540 | -6/Proximity Caves | Discovered new exit (range 12) 4567 | -6/Proximity Caves | Entered Factory 4567 | -6/Factory | Evolved 2 slots: Propulsion x1, Utility x1 4758 | -6/Factory | Retrieved Zion intel report: Branch Access 4758 | -6/Factory | Identified exit to Lower Caves 4759 | -6/Factory | Zion Infowar Resupply teleported in 4769 | -6/Factory | Discovered new exit (range 6) 4774 | -6/Factory | Discovered new exit (range 12) 4776 | -6/Factory | Entered another Factory area 4776 | -5/Factory | Evolved 2 slots: Utility x1, Weapon x1 5076 | -5/Factory | Search patrols dispatched 5109 | -5/Factory | Zion Light squad teleported in 5221 | -5/Factory | Build established: Scavenger-Tank 5305 | -5/Factory | Discovered new exit (range 13) 5306 | -5/Factory | Discovered new exit (range 10) 5376 | -5/Factory | First assault squad dispatched 5382 | -5/Factory | Fabricated R-10 Processor (x1) 5393 | -5/Factory | Entered another Factory area 5393 | -4/Factory | Accompanied by 4 allies 5393 | -4/Factory | Evolved 2 slots: Propulsion x1, Weapon x1 5643 | -4/Factory | First assault squad dispatched 5647 | -4/Factory | Zion Heavy squad teleported in 5694 | -4/Factory | Build established: Scavenger-Executioner 5895 | -4/Factory | P-70 Sage assimilated allied Processor 6a 6060 | -4/Factory | Lost 3 parts (2n1w) 6139 | -4/Factory | Retrieved Zion intel report: Prototype Stockpiles 6140 | -4/Factory | Zion Demo squad teleported in 6216 | -4/Factory | Zion Fire squad teleported in 6487 | -4/Factory | Lost 4 allies 6591 | -4/Factory | Garrison activated, responded to threat 6639 | -4/Factory | Core integrity fell below 50% 6645 | -4/Factory | Core integrity fell below 20% 6666 | -4/Factory | Destroyed by P-70 Sage with Tesla Rifle Last Messages --------------- 06634_ Destabilizing: Short circuit. 06635_ Centrium Wheel destroyed. 06635_ Imp. Focal Shield destroyed. 06636_ Slammed into G-67 Veteran. 06636_ Destabilizing: System corrupted (+2). 06636_ Subcomponent Replicator disabled. 06636_ Broken Adv. Cooling System destroyed. 06640_ Critical hit (Burn: +50). 06640_ Targeting Computer destroyed. 06641_ Adv. Cryofiber Web destroyed. 06642_ Dropped Lrg. Storage Unit. 06643_ ALERT: Rogue bot located, Programmers report to Factory Zone 1E. 06643_ M-36 Artificer repairs G-73 Enforcer. 06644_ ALERT: Garrison Access compromised, dispatching assault squad. 06644_ Garrison Access disabled. 06644_ Relay Coupler [Hunter] tumbles out of Garrison Access. 06652_ Subcomponent Replicator disabled. Map ----- +----------------------------------------------------+ | ??????????????# #|=[ #?????????????####### | | ??????????????# ##[ ##???????????????????? | | ??????????????# = ## #????????????????????? | | ?????###############+### +%???????????????????? | | ????# " ## ### # ??????????????????? | | ???????# *! ""%# # # ?????????????????? | | ######## !% ""= # # ????????????????? | | # !!% | "" # # * "???????????????? | | # =""" " ! " "???????????????? | | # """ " " ""??????????????? | | # """" " ?????????????? | | # """ %# " ??????????????? | | # """"!# " ??????????????? | | #### # """" # "" ?????????????? | | # + """" #"#+#####?????????????# | | + # # # # # ###########???? | | # # " #" # # #???? | | # # ! # # # """""???????? | | ?# # # # """""???????? | | ?### ### + %+* """"""??????? | | ????# #?####"######^ % %# """""" ?????? | | #????# #???## ###########+## #???? | | ??####+#####""# * % !#" # #???? | | ??# [ # " # ## #####+#####???? | | ??# """"" # " * t # ???? | | ??# """"" # @ # ???? | | ??+ """ # # ???? | | ??# # # ######## ???? | | ??# """"" # # #???????? ????? | | ??+ """"" # #] #????????? ""?????? | | ??# """ # # #?????????????????? | | ??# #! # #?????????????????? | | ??# """"" # # #????????? ??? ???? | | ??# """"" # # #???????? ??? "?? | | ??# """ ########/##### #???????"" """ ""? | | ??# ?? #?######p#???# #??????#"" """ """ | | ??######??############ ###?# ######?# | | ????????????# # p #?# ? | | ????????????# # ### | | ????????????# + | | ????????????#! # ### """ """ """ | | ????????????# # ### """^""" """ !" | | ????????????# ### #### """ """ """ !"G" | | ????????????########?# #??# """ """ """ " | | ?????????????#########+#### | | ?????????????# # | | ?????????????# # | | ?????????????# # | | ?????????????# # """"" "" | | ?????????????# # """"" """" | +----------------------------------------------------+ Best States ------------- Heat Dissipation 105 Coolant Potential 50 Energy Generation 37 Energy Capacity 550 Matter Stores 300 Matter Capacity 300 Sight Range 16 Terrain Scan Density 10 Jamming Range 16 Base Temperature (-) 200 Armor Coverage 250 Resistance: KI 25 Utility Shielding 66 Evasion (%) 50 Targeting Accuracy 5 Recoil Reduction 1 Energy Filtering 30 Item Schematics ----------------- None Robot Schematics ------------------ None Fabricated ------------ R-10 Processor | x1 | -5/Factory | Preloaded Alien Tech Used ----------------- None Achievements -------------- Leap Before You Look My Command Is Your Wish Challenges ------------ None Game ------ Seed EfficiencyPiercingChainsword Manual? 0 Play Time 01:23:30 Cumulative 20.6 hours Start 2024.04.25 @ 00:11:20 End 2024.04.25 @ 01:33:31 Sessions 1 Manual Loads 0 Difficulty Rogue Special Mode None Game No. 24 Rogue 24 Adventurer 0 Explorer 0 Win Type - Total 0 Types 0/0/0/0/0/0/0/0/0 Lore% 17 Gallery% 29 Achievement% 20 Wizard Run 0 Options --------- Layout 1 ASCII 0 Keyboard 0 Movement Mouse Keybinds 0 Fullscreen 1 Font 24/Smallcaps Map View 50x35 Zoom Use 0% Tactical HUD 1 Map Filters NONE Filters NONE Steam 1 RUN: 4c37ee72-70a2-4ced-a0e0-97146d63c4e8